bitfinex/quotes_ETHUSD_20250821
["timestamp","ask_amount","ask_price","bid_price","bid_amount"]
[1755783708862,0.4731,4291.1,4290.2,1.15377439]
[1755783709283,0.002,4291.7,4290.4,2.33073808]
[1755783709435,0.002,4291.7,4290.5,0.0233073]
[1755783709639,0.002,4291.7,4290.7,3.0]
[1755783709855,0.002,4291.7,4290.9,3.1168]
[1755783710052,0.002,4291.7,4291.1,3.0]
[1755783710342,0.002,4291.7,4291.2,4.3203035]
[1755783710677,0.002,4291.7,4291.4,2.33024187]
[1755783710837,0.002,4291.7,4291.6,2.33013328]
[1755783711033,0.002,4291.7,4291.6,1.792]
[1755783711582,0.002,4291.7,4291.6,7.61301328]
[1755783711861,0.002,4291.7,4291.6,12.47621328]
[1755783712065,0.002,4291.7,4291.6,13.13621328]
[1755783712981,0.02,4291.8,4291.7,5.33007898]
[1755783713268,0.02,4291.8,4291.7,8.16815545]
[1755783713432,0.02,4291.8,4291.7,12.46515545]
[1755783714447,0.02,4291.8,4291.7,12.58195545]
[1755783714789,1e-08,4291.8,4291.7,12.58195545]
[1755783714945,0.002,4292.1,4292.0,2.98991612]
[1755783715147,0.002,4292.1,4292.0,6.59992669]
[1755783715372,0.002,4292.1,4292.0,10.89592669]
[1755783715572,0.002,4292.1,4292.0,10.68532669]
[1755783715774,0.002,4292.1,4292.0,10.97512669]
[1755783716562,0.002,4292.1,4292.0,10.52572669]
[1755783717047,0.002,4292.1,4292.0,10.97512669]
[1755783717443,0.002,4292.1,4292.0,6.22972669]
[1755783717749,0.002,4292.1,4292.0,11.63512669]
[1755783718964,0.002,4292.1,4292.0,7.33912669]
[1755783719165,0.002,4292.1,4292.0,11.63412669]
[1755783721263,0.002,4292.1,4292.0,5.93992669]
[1755783721498,0.002,4292.1,4292.0,9.74171612]
[1755783721999,0.002,4292.1,4292.0,5.44671612]
[1755783722171,0.7636,4292.1,4292.0,4.4108]
[1755783722376,0.2897,4292.1,4292.0,6.74071612]
[1755783722564,0.002,4292.1,4292.0,6.74071612]
[1755783722767,0.7636,4292.1,4291.8,1.792]
[1755783723105,0.002,4292.1,4292.0,2.32991612]
[1755783723400,0.002,4292.1,4292.0,2.35321528]
[1755783723995,0.002,4292.1,4292.0,3.41851795]
[1755783724165,0.002,4292.1,4292.0,3.53531795]
[1755783725064,0.002,4292.1,4292.0,3.55861711]
[1755783725259,0.002,4292.1,4292.0,3.53531795]
[1755783725462,0.7636,4292.1,4292.0,4.4098]
[1755783725693,0.7636,4292.1,4292.0,4.293]
[1755783726084,0.7636,4292.1,4291.8,1.792]
[1755783726291,0.49720855,4292.0,4291.8,1.792]
[1755783726503,0.31100855,4291.9,4291.8,1.317]
[1755783726806,0.78490855,4291.9,4291.8,5.61]
[1755783727006,0.78490855,4291.9,4291.7,4.293]
[1755783727204,0.66,4291.7,4291.5,4.293]
[1755783727373,0.92939941,4291.6,4291.4,4.293]
[1755783727573,0.4607,4291.5,4291.4,4.293]
[1755783727773,0.7473,4291.5,4291.4,4.293]
[1755783728074,0.7473,4291.5,4291.2,4.293]
[1755783728267,0.7473,4291.5,4290.9,1.792]
[1755783728268,0.2866,4291.5,4291.3,4.293]
[1755783728571,0.4607,4291.4,4291.3,4.293]
[1755783728770,0.7473,4291.4,4290.9,1.792]
[1755783729019,0.48400855,4291.3,4291.0,4.293]
[1755783729325,0.2866,4291.1,4291.0,4.293]
[1755783729486,0.4607,4291.7,4291.0,4.293]
[1755783730205,0.2866,4291.1,4291.0,4.293]
[1755783730518,0.7473,4291.1,4291.0,4.293]
[1755783730719,0.7473,4291.1,4290.9,1.792]
[1755783730919,0.4607,4291.0,4290.9,6.085]
[1755783731232,0.7473,4291.0,4290.9,6.085]
[1755783731400,0.7473,4291.0,4290.9,1.792]
[1755783731718,0.7465,4291.0,4290.9,1.792]
[1755783732040,0.2866,4291.0,4290.9,1.792]
[1755783732330,0.2866,4291.0,4290.8,4.313]
[1755783733789,0.4607,4290.9,4290.8,4.313]
[1755783733984,0.4607,4290.9,4290.8,0.02]
[1755783733985,0.7473,4290.9,4290.8,0.02]
[1755783735105,0.02330855,4291.7,4290.8,0.02]
[1755783735106,0.4607,4291.5,4290.8,0.02]
[1755783735322,0.002,4292.1,4290.8,0.4512]
[1755783735489,0.4607,4292.0,4290.8,2.2432]
[1755783735710,0.4607,4292.0,4290.9,0.02330513]
[1755783735913,0.02330855,4291.9,4290.8,1.812]
[1755783736108,0.4607,4291.8,4290.8,1.812]
[1755783736419,0.002,4292.1,4290.9,0.02330513]
[1755783736593,0.02530855,4292.1,4290.9,0.02330513]
[1755783736794,0.02530855,4292.1,4290.8,2.4224]
[1755783737204,0.4607,4292.0,4290.9,4.292]
[1755783737408,0.02330855,4291.9,4290.9,4.292]
[1755783737609,0.02330855,4291.9,4290.8,1.812]
[1755783737820,0.4607,4291.8,4290.9,4.292]
[1755783738011,0.02330855,4291.7,4290.9,4.292]
[1755783738212,0.4607,4291.8,4291.0,0.02330459]
[1755783738415,0.02330855,4291.7,4291.1,4.292]
[1755783739335,0.002,4292.1,4291.6,0.3149]
[1755783739491,0.002,4292.1,4291.7,4.31530078]
[1755783740327,0.4607,4292.0,4290.5,2.33070804]
[1755783740497,0.2866,4291.8,4290.9,4.291]
[1755783740699,0.02330855,4291.7,4290.9,4.291]
[1755783741113,0.02330855,4291.9,4290.9,4.291]
[1755783741727,0.02330855,4291.9,4290.3,6.0527]
[1755783742029,0.02330855,4291.9,4290.9,4.291]
[1755783742224,0.66,4291.7,4291.0,4.291]
[1755783742626,0.02330855,4291.6,4290.9,0.02330513]
[1755783742830,0.02330855,4291.6,4291.1,4.291]
[1755783743002,0.02330855,4291.6,4290.3,5.603]
[1755783743003,0.2866,4291.2,4290.3,5.603]
[1755783743324,0.2866,4291.2,4290.9,4.291]
[1755783743325,0.7473,4291.2,4290.9,4.291]
[1755783744028,0.4607,4291.1,4290.9,4.291]
[1755783744208,0.2866,4291.0,4290.9,4.291]
[1755783744408,0.7473,4291.0,4290.9,4.29]
[1755783744613,0.4627,4292.1,4290.9,4.29]
[1755783744811,0.1796,4292.0,4290.9,4.29]
[1755783745135,0.002,4292.1,4291.0,0.4497]
[1755783745338,0.002,4292.1,4291.0,2.78011301]
[1755783745510,0.002,4292.1,4291.0,0.47300459]
[1755783745916,0.002,4292.1,4291.0,0.4497]
[1755783747023,0.002,4292.1,4291.1,0.02330404]
[1755783747538,0.002,4292.1,4290.8,1.813]
[1755783747539,0.02330855,4292.0,4290.8,0.021]
[1755783747753,0.66,4291.1,4290.8,0.021]
[1755783748035,0.002,4292.1,4290.8,0.021]
[1755783748036,0.9466,4290.9,4290.8,0.021]
[1755783748240,1.08966086,4290.9,4290.8,0.021]
[1755783748560,1.55036086,4290.9,4290.8,0.021]
[1755783749121,0.89036086,4290.9,4290.8,0.021]
[1755783749755,6.88087427,4290.9,4290.8,0.021]
[1755783749922,4.76794617,4290.9,4290.8,0.021]
[1755783750456,4.55036086,4290.9,4290.8,0.021]
[1755783750959,4.08966086,4290.9,4290.8,0.021]
[1755783751737,3.42966086,4290.9,4290.8,0.021]
[1755783751936,3.14306086,4290.9,4290.8,0.021]
[1755783752138,3.42966086,4290.9,4290.8,0.021]
[1755783752376,4.55036086,4290.9,4290.8,0.021]
[1755783753185,7.2290746,4290.9,4290.8,0.021]
[1755783753385,37.2290746,4290.9,4290.8,0.021]
[1755783753537,37.73052461,4290.9,4290.8,0.021]
[1755783754575,17.99266405,4290.4,4289.9,0.001]
[1755783754883,51.16125176,4290.4,4289.9,0.001]
[1755783755091,51.62195176,4290.4,4289.9,0.001]
[1755783755446,51.62115176,4290.4,4289.9,0.001]
[1755783756194,49.29116676,4290.4,4289.9,0.001]
[1755783756480,13.90807271,4290.4,4289.9,0.001]
[1755783756982,55.90995176,4290.4,4289.9,0.001]
[1755783757842,25.90995176,4290.4,4289.9,0.001]
[1755783758045,21.62195176,4290.4,4289.9,0.001]
[1755783758347,55.90895176,4290.4,4289.9,0.001]
[1755783759276,51.62195176,4290.4,4289.9,0.001]
[1755783759469,55.90995176,4290.4,4289.9,0.001]
[1755783759659,55.56175143,4290.4,4289.9,0.001]
[1755783759974,55.56175143,4290.4,4290.3,0.7746]
[1755783759975,0.34730637,4290.4,4290.3,0.7746]
[1755783760136,0.002,4291.0,4290.3,0.7746]
[1755783760336,0.002,4291.0,4290.4,0.48450785]
[1755783760560,0.002,4291.0,4290.9,0.3124]
[1755783760976,0.002,4291.0,4290.9,0.7736]
[1755783765103,0.002,4291.0,4290.9,3.10411341]
[1755783765263,0.002,4291.0,4290.9,3.67089179]
[1755783768565,0.002,4291.0,4290.9,6.67089179]
[1755783768787,0.02,4291.8,4291.7,2.33007898]
[1755783768994,0.02,4291.8,4291.7,17.76115803]
[1755783769205,0.02,4291.8,4291.7,18.22235803]
[1755783769392,0.02,4291.8,4291.7,20.2776093]
[1755783770731,0.02,4291.8,4291.7,12.55973025]
[1755783772205,0.02,4291.8,4291.7,8.27573025]
[1755783772404,0.02,4291.8,4291.7,12.55973025]
[1755783772781,0.02,4291.8,4291.7,12.73642818]
[1755783773109,0.02,4291.8,4291.7,8.45242818]
[1755783773681,0.02,4291.8,4291.7,2.94565127]
[1755783773880,0.02,4291.8,4291.7,0.8904]
[1755783774075,0.02,4291.8,4291.7,0.7736]
[1755783774284,0.02,4291.8,4291.7,0.3124]
[1755783774527,0.02,4291.8,4290.7,0.4612]
[1755783774820,0.02,4291.8,4290.3,0.1178]
[1755783774821,0.3267,4291.8,4290.3,0.1178]
[1755783774985,0.02330855,4291.7,4290.3,3.6039]
[1755783775189,0.02330855,4291.7,4290.8,0.001]
[1755783775604,0.451,4291.6,4290.8,0.001]
[1755783775796,0.02330855,4291.5,4290.8,0.001]
[1755783776711,0.02,4291.8,4290.8,0.001]
[1755783777018,0.04330855,4291.8,4290.8,0.001]
[1755783777723,0.04330855,4291.8,4289.3,0.001]
[1755783777724,0.66,4290.4,4289.3,0.001]
[1755783777906,0.3067,4289.6,4289.3,0.001]
[1755783778094,0.66,4289.4,4289.3,0.001]
[1755783778284,0.33000855,4289.4,4289.3,0.001]
[1755783778484,0.02330855,4290.1,4289.3,0.001]
[1755783778816,0.451,4290.1,4289.3,0.001]
[1755783779122,0.02330855,4290.0,4289.3,0.001]
[1755783779325,0.02250855,4290.0,4289.3,0.001]
[1755783780727,0.66,4290.7,4289.3,0.001]
[1755783781026,0.02250855,4290.6,4289.3,0.001]
[1755783782019,0.3067,4289.4,4289.3,0.001]
[1755783782534,0.7577,4289.4,4289.3,0.001]
[1755783782833,1.111,4289.4,4289.3,0.001]
[1755783783037,36.87593694,4289.4,4289.3,0.001]
[1755783783226,0.66,4288.9,4288.8,0.02]
[1755783783422,6.01410872,4288.9,4288.8,0.02]
[1755783783607,1.111,4288.9,4288.8,0.02]
[1755783783803,1.13350855,4288.9,4288.8,0.02]
[1755783784003,1.48000324,4288.9,4288.8,0.02]
[1755783784233,1.13350855,4288.9,4288.8,0.02]
[1755783784931,1.111,4288.9,4288.8,0.02]
[1755783785299,0.451,4288.9,4288.8,0.02]
[1755783785641,1.111,4288.9,4288.8,0.021]
[1755783785843,1.13350855,4288.9,4288.8,0.021]
[1755783786057,6.44260017,4288.9,4288.8,0.021]
[1755783786201,6.47313963,4288.9,4288.8,0.021]
[1755783787015,8.8047398,4288.9,4288.8,0.021]
[1755783788342,38.8047398,4288.9,4288.8,0.021]
[1755783789417,36.47313963,4288.9,4288.8,0.021]
[1755783789613,6.47313963,4288.9,4288.8,0.021]
[1755783789857,0.66,4288.9,4288.8,0.021]
[1755783790152,1.12590855,4288.9,4288.8,0.021]
[1755783790529,33.45750872,4288.9,4288.8,0.021]
[1755783790730,34.76749861,4288.9,4288.8,0.021]
[1755783790936,36.72800017,4288.9,4288.8,0.021]
[1755783791128,39.0901398,4288.9,4288.8,0.021]
[1755783791743,6.09853963,4288.9,4288.8,0.021]
[1755783792952,6.75853963,4288.9,4288.8,0.021]
[1755783793851,6.31513963,4288.9,4288.8,0.021]
[1755783794468,2.36213963,4288.9,4288.8,0.021]
[1755783794756,0.02250855,4289.3,4288.8,0.021]
[1755783794970,0.68250855,4289.3,4288.8,0.021]
[1755783795322,0.02250855,4289.3,4288.8,0.021]
[1755783795523,0.86275086,4289.2,4288.8,0.021]
[1755783795740,0.68250855,4289.1,4288.8,0.021]
[1755783797564,0.02250855,4289.1,4288.9,0.4681]
[1755783797777,0.02002,4290.8,4289.0,0.79811545]
[1755783798064,0.02250855,4290.4,4289.0,0.7748]
[1755783798433,0.02250855,4290.4,4289.1,0.02331491]
[1755783798627,0.02450855,4290.6,4290.3,0.3067]
[1755783798838,0.02450855,4290.6,4290.4,0.4681]
[1755783798839,0.002,4290.6,4290.4,0.4681]
[1755783799028,0.002,4290.6,4290.5,0.3067]
[1755783799468,0.002,4290.6,4290.5,0.7748]
[1755783800465,0.002,4290.6,4290.5,0.4681]
[1755783800666,0.002,4290.6,4290.5,0.77130002]
[1755783800972,0.002,4290.6,4290.5,0.4914073]
[1755783801178,0.002,4290.6,4290.5,0.4681]
[1755783801729,0.002,4290.6,4289.8,0.4681]
[1755783802162,0.002,4290.6,4289.9,2.35431585]
[1755783802367,0.002,4290.6,4290.0,0.28224159]
[1755783802544,0.002,4290.6,4290.1,0.02330947]
[1755783802866,0.002,4290.6,4290.0,0.75034159]
[1755783803075,0.0012,4290.6,4290.0,0.4681]
[1755783804049,0.0012,4290.6,4290.1,0.02330947]
[1755783804577,0.0012,4290.6,4290.2,0.49140893]
[1755783804998,0.0012,4290.6,4290.3,0.4681]
[1755783805197,0.0012,4290.6,4290.5,2.33073068]
[1755783805357,0.0012,4290.6,4290.5,2.84369747]
[1755783805552,0.0012,4290.6,4290.5,3.42859747]
[1755783806461,0.0012,4290.6,4290.5,3.45190477]
[1755783806659,0.0012,4290.6,4290.5,6.45190477]
[1755783806868,0.0012,4290.6,4290.5,6.42859747]
[1755783807287,0.0012,4290.6,4290.5,7.08859747]
[1755783807966,0.0012,4290.6,4290.5,6.42859747]
[1755783808289,0.0012,4290.6,4290.5,6.73529747]
[1755783808880,0.0012,4290.6,4290.5,4.40456679]
[1755783809189,0.0012,4290.6,4290.5,6.73529747]
[1755783810093,0.002,4291.1,4291.0,5.9904591]
[1755783810292,0.002,4291.5,4291.4,2.33024187]
[1755783810470,0.002,4292.1,4291.7,2.33007898]
[1755783810663,0.002,4292.1,4291.7,2.77687976]
[1755783810983,0.002,4292.1,4291.7,3.24497976]
[1755783811182,0.002,4292.1,4291.7,3.77919239]
[1755783812370,0.002,4292.1,4291.7,1.44911341]
[1755783812558,0.002,4292.1,4291.7,0.8916]
[1755783812763,0.002,4292.1,4291.7,3.24497976]
[1755783813297,0.002,4292.1,4291.7,3.22167898]
[1755783813674,0.002,4292.1,4291.7,6.24497976]
[1755783813874,0.002,4292.1,4291.7,6.88167898]
[1755783814070,0.002,4292.1,4291.7,7.80286527]
[1755783814298,0.002,4292.1,4291.7,7.9805956]
[1755783815105,0.00103081,4292.8,4292.0,0.66]
[1755783815282,0.00103081,4292.8,4292.7,15.10821523]
[1755783815486,0.00103081,4292.8,4292.7,18.41491523]
[1755783815661,0.00103081,4292.8,4292.7,18.88301523]
[1755783815999,0.00103081,4292.8,4292.7,6.88113618]
[1755783816197,0.00103081,4292.8,4292.7,7.80221097]
[1755783816716,0.00103081,4292.8,4292.7,1.81267479]
[1755783816869,0.00103081,4292.8,4292.7,0.4235]
[1755783817220,0.00103081,4292.8,4292.5,2.32963942]
[1755783817511,0.00103081,4292.8,4292.4,2.44649348]
[1755783817664,0.00103081,4292.8,4292.4,0.5891]
[1755783817865,0.00103081,4292.8,4292.5,0.49559644]
[1755783818099,0.00103081,4292.8,4292.5,3.4723]
[1755783818398,0.00103081,4292.8,4292.7,2.76273618]
[1755783818897,0.00103081,4292.8,4292.7,0.9055]
[1755783819099,0.00103081,4292.8,4292.7,0.1168]
[1755783819812,0.74233081,4292.8,4291.7,0.1168]
[1755783820107,0.74233081,4292.8,4291.8,2.32997392]
[1755783820311,0.74233081,4292.8,4291.7,0.1168]
[1755783820509,0.74233081,4292.8,4291.6,2.33008683]
[1755783820883,0.74233081,4292.8,4291.5,2.33017946]
[1755783821079,0.74233081,4292.8,4291.4,0.1168]
[1755783821281,0.4368,4292.7,4291.4,2.33022192]
[1755783821515,0.4368,4292.7,4291.2,0.1168]
[1755783821825,0.4368,4292.7,4291.2,0.40875072]
[1755783822135,0.4368,4292.7,4291.2,0.1168]
[1755783822694,0.02250855,4292.6,4290.4,0.4723]
[1755783823000,0.4368,4292.5,4290.6,2.3306317]
[1755783823198,0.02250855,4292.4,4290.7,5.3305723]
[1755783823397,0.00103081,4292.8,4291.9,2.32996801]
[1755783823690,0.00103081,4292.8,4292.2,2.32976548]
[1755783823880,0.00103081,4292.8,4292.3,0.02329753]
[1755783824219,0.00103081,4292.8,4292.7,2.44633618]
[1755783824409,0.00103081,4292.8,4292.7,2.46963154]
[1755783824591,0.00103081,4292.8,4292.7,2.94193154]
[1755783824788,0.00103081,4292.8,4292.7,5.94193154]
[1755783825102,0.00103081,4292.8,4292.7,5.44633618]
[1755783825301,0.00103081,4292.8,4292.7,5.9909698]
[1755783825504,0.00103081,4292.8,4292.7,0.1168]
[1755783825702,0.00103081,4292.8,4291.5,2.33018758]
[1755783825903,0.00103081,4292.8,4292.1,0.1168]
[1755783826106,0.00103081,4292.8,4291.9,0.1168]
[1755783826319,0.00103081,4292.8,4292.0,0.02329916]
[1755783826483,0.00103081,4292.8,4292.7,2.32953618]
[1755783826803,0.00023081,4292.8,4292.7,2.44633618]
[1755783827016,0.00023081,4292.8,4292.7,2.91863618]
[1755783827200,0.00023081,4292.8,4292.7,6.46675634]
[1755783827522,0.00023081,4292.8,4292.7,9.56346098]
[1755783827681,0.02,4294.8,4292.9,8.44942765]
[1755783827888,0.02,4294.8,4292.9,8.62121302]
[1755783828188,0.02,4294.8,4292.9,6.63351302]
[1755783828387,0.02,4294.8,4292.9,7.83998042]
[1755783828609,0.02,4294.8,4292.9,4.00819505]
[1755783828889,0.4368,4294.4,4292.9,2.80172765]
[1755783829104,0.002,4293.7,4292.9,2.82502192]
[1755783829486,0.002,4293.7,4292.9,2.80172765]
[1755783830593,0.002,4293.7,4292.9,3.48502192]
[1755783830806,0.002,4293.7,4292.9,3.46172765]
[1755783831008,0.002,4293.7,4292.9,3.74501651]
[1755783831226,0.002,4293.7,4292.9,0.94328886]
[1755783831422,0.002,4293.7,4292.8,3.0]
[1755783831744,0.002,4293.7,4292.7,2.97114526]
[1755783831745,0.4368,4293.6,4292.7,0.1168]
[1755783831908,0.4368,4293.6,4292.4,2.44647783]
[1755783832235,0.4368,4293.6,4291.6,0.4723]
[1755783832236,0.4388,4293.0,4291.6,0.4723]
[1755783832439,0.4388,4293.0,4292.0,0.1168]
[1755783832796,0.4388,4293.0,4291.8,2.44677862]
[1755783833021,0.4388,4293.0,4291.0,0.4723]
[1755783833222,0.4388,4293.0,4291.5,0.1168]
[1755783833422,0.4388,4293.0,4291.7,2.33007003]
[1755783833594,0.4388,4293.0,4291.0,0.4723]
[1755783833595,0.4388,4293.0,4291.8,0.02330024]
[1755783833796,0.4388,4293.0,4291.8,2.44677288]
[1755783834189,0.4388,4293.0,4291.9,2.32995765]
[1755783834631,0.4388,4293.0,4291.8,2.44681367]
[1755783834839,0.002,4293.0,4291.9,2.3299704]
[1755783835047,0.002,4293.0,4292.0,0.24700706]
[1755783835336,0.002,4293.0,4292.1,0.02329861]
[1755783835693,0.002,4293.0,4292.1,0.1168]
[1755783835923,0.002,4293.0,4291.8,0.13682]
[1755783836295,0.002,4293.0,4292.1,2.32980796]
[1755783836491,0.002,4293.0,4292.2,0.02329807]
[1755783837626,0.002,4293.0,4292.2,0.49559807]
[1755783837829,0.002,4293.0,4292.2,0.4723]
[1755783838028,0.002,4293.0,4292.8,2.32948192]
[1755783838232,0.002,4293.0,4292.7,0.1168]
[1755783838726,0.4368,4292.9,4291.5,0.4723]
[1755783838933,0.002,4293.0,4291.9,0.1168]
[1755783839140,0.002,4293.0,4291.9,2.44675582]
[1755783839429,0.002,4293.0,4292.0,0.24667758]
[1755783839595,0.002,4293.0,4292.0,2.57658544]
[1755783839791,0.002,4293.0,4292.0,0.24667758]
[1755783840032,0.002,4293.0,4292.7,2.32949664]
[1755783840213,0.002,4293.0,4292.9,2.32942765]
[1755783840739,0.002,4293.0,4292.9,2.94182192]
[1755783841525,0.002,4293.0,4292.9,2.91852765]
[1755783842597,0.002,4293.0,4292.9,3.60182192]
[1755783842909,0.002,4293.0,4292.9,10.00014179]
[1755783843109,0.002,4293.0,4292.9,9.97684752]
[1755783843407,0.002,4293.0,4292.9,10.29324752]
[1755783844117,0.002,4293.5,4293.4,2.98915637]
[1755783844322,0.002,4293.5,4293.4,20.79072698]
[1755783844516,0.002,4293.5,4293.4,21.17620859]
[1755783844836,0.002,4293.5,4293.4,21.64850859]
[1755783845016,0.002,4293.9,4293.7,3.12]
[1755783845219,0.002,4293.9,4293.7,8.78868357]
[1755783845394,0.002,4293.9,4293.7,8.37696764]
[1755783845829,1e-08,4293.8,4293.7,8.37696764]
[1755783846044,0.002,4293.9,4293.8,5.9889394]
[1755783846200,0.002,4293.9,4293.8,6.3053394]
[1755783846395,0.002,4293.9,4293.8,6.95281675]
[1755783846639,0.002,4293.9,4293.8,7.89113662]
[1755783847518,0.002,4293.9,4293.8,4.89113662]
[1755783847723,0.02,4295.8,4294.7,2.98845134]
[1755783847908,0.02,4295.8,4294.7,6.28395134]
[1755783848106,0.02,4295.8,4294.7,6.86335134]
[1755783848322,0.02,4295.8,4294.7,7.15532451]
[1755783848634,0.02,4295.8,4294.7,6.69272451]
[1755783850556,0.0192,4294.8,4294.7,7.15532451]
[1755783854142,0.0192,4294.8,4294.7,6.69272451]
[1755783855545,0.0192,4294.8,4294.7,6.39722451]
[1755783859039,1e-08,4294.8,4294.7,7.15532451]
[1755783859225,0.02,4295.8,4295.7,2.9879093]
[1755783859549,0.02,4295.8,4295.7,9.27499845]
[1755783859712,0.0012,4296.3,4296.2,2.98763837]
[1755783859908,0.0012,4296.3,4296.2,6.30641475]
[1755783860238,0.0012,4296.3,4296.2,6.86173837]
[1755783862955,0.0012,4296.3,4296.2,6.28184678]
[1755783863156,0.0012,4296.3,4296.2,7.14280293]
[1755783865523,0.0012,4296.3,4296.2,6.48280293]
[1755783866125,0.0012,4296.3,4296.2,7.43830293]
[1755783866847,0.0012,4296.3,4296.2,7.14280293]
[1755783867053,0.7661,4296.3,4296.2,0.116]
[1755783867256,0.7661,4296.3,4295.8,2.32783796]
[1755783867453,0.7661,4296.3,4296.0,0.116]
[1755783867831,0.462,4296.2,4296.0,0.116]
[1755783868162,0.0012,4296.3,4296.0,0.116]
[1755783868460,0.0012,4296.3,4296.0,0.29007376]
[1755783868627,0.0012,4296.3,4296.0,0.116]
[1755783868834,0.0012,4296.3,4296.1,2.32769071]
[1755783869033,0.3029,4296.2,4296.1,2.32769071]
[1755783871194,0.0012,4296.3,4296.2,2.32763837]
[1755783871560,0.3041,4296.3,4296.2,2.32763837]
[1755783871963,0.7661,4296.3,4296.0,0.29279253]
[1755783872169,0.462,4296.2,4296.0,0.116]
[1755783872390,0.3029,4296.1,4295.4,0.17584639]
[1755783872595,0.3029,4296.1,4295.3,0.1168]
[1755783872899,0.462,4296.0,4295.3,0.1168]
[1755783873699,0.3029,4295.4,4295.3,0.1168]
[1755783874195,0.3021,4295.4,4295.3,0.1168]
[1755783874799,0.3021,4295.4,4295.3,2.44492609]
[1755783875016,0.462,4295.7,4295.3,2.44492609]
[1755783875218,0.462,4295.7,4295.4,2.32805959]
[1755783875370,0.462,4295.7,4295.3,0.1168]
[1755783875676,0.0012,4296.3,4295.4,0.02328071]
[1755783875887,0.0012,4296.3,4295.8,2.32783619]
[1755783876212,0.4632,4296.3,4295.9,2.44379218]
[1755783876717,0.4632,4296.3,4295.9,0.116]
[1755783876868,0.3029,4296.0,4295.9,0.116]
[1755783877900,0.0012,4296.3,4295.9,0.116]
[1755783878101,0.0012,4296.3,4295.9,2.44379684]
[1755783878304,0.0012,4296.3,4296.0,0.02327746]
[1755783878509,0.0012,4296.3,4295.9,0.116]
[1755783879010,0.0012,4296.3,4296.0,2.66257183]
[1755783879185,0.0012,4296.3,4296.0,0.3116]
[1755783879410,0.0012,4296.3,4296.0,2.66261581]
[1755783879607,0.0012,4296.3,4296.1,2.32768673]
[1755783879813,0.0012,4296.3,4296.2,2.32763837]
[1755783880316,0.0012,4296.3,4296.2,2.35091475]
[1755783880511,0.0012,4296.3,4296.2,2.44363837]
[1755783880714,0.0012,4296.3,4296.2,2.76911475]
[1755783880911,0.0012,4296.3,4296.2,3.84423837]
[1755783881115,0.0012,4296.3,4296.2,4.46143627]
[1755783881621,0.0012,4296.3,4296.2,3.06083627]
[1755783881998,0.0012,4296.3,4296.2,3.36303627]
[1755783882602,0.0012,4296.3,4296.2,3.06083627]
[1755783882908,0.0012,4296.3,4296.2,2.44363837]
[1755783884005,0.0012,4296.3,4296.2,2.46691475]
[1755783884209,0.0012,4296.3,4296.2,2.44363837]
[1755783885426,0.2907,4296.3,4296.2,0.116]
[1755783885612,0.0012,4296.3,4296.2,2.44363837]
[1755783885932,0.0012,4296.3,4296.2,2.68800221]
[1755783886138,0.2907,4296.3,4296.2,2.68800221]
[1755783886335,0.0192,4296.8,4296.7,2.32736751]
[1755783886510,0.0192,4296.8,4296.6,2.32738239]
[1755783886713,0.0192,4296.8,4296.7,2.90885509]
[1755783886933,0.0192,4296.8,4296.7,2.93212876]
[1755783887136,0.0192,4296.8,4296.7,2.90885509]
[1755783887337,0.0192,4296.8,4296.7,9.65345509]
[1755783887505,0.0192,4296.8,4296.7,7.30945509]
[1755783890019,0.0192,4296.8,4296.7,9.76945509]
[1755783892649,0.0212,4296.8,4296.7,9.76945509]
[1755783893919,0.0212,4296.8,4296.7,7.30945509]
[1755783894109,0.0212,4296.8,4296.7,6.87105509]
[1755783895014,0.02,4297.8,4297.7,2.98682597]
[1755783895220,0.02,4297.8,4297.7,2.74150857]
[1755783895458,0.7597,4297.8,4297.7,0.4146826]
[1755783895661,0.7597,4297.8,4297.7,0.116]
[1755783895844,0.7597,4297.8,4296.7,0.46548758]
[1755783896158,0.7597,4297.8,4297.4,0.116]
[1755783896332,0.3095,4297.8,4297.4,0.116]
[1755783896517,0.4502,4297.7,4297.4,2.44298617]
[1755783896718,0.2895,4297.5,4297.4,0.116]
[1755783897252,0.2895,4297.5,4297.4,2.44298841]
[1755783897658,0.7397,4297.5,4297.4,0.116]
[1755783897823,0.7397,4297.5,4296.7,2.32732987]
[1755783898024,0.4494,4297.4,4296.9,0.116]
[1755783898224,0.2895,4297.0,4296.9,0.116]
[1755783898616,0.2895,4297.0,4296.3,2.32854137]
[1755783898823,0.2895,4297.0,4296.4,2.3275244]
[1755783899023,0.2895,4297.0,4296.3,0.29163843]
[1755783899224,0.2895,4297.0,4296.3,0.117]
[1755783899424,0.2895,4297.0,4296.3,0.001]
[1755783900128,0.4491,4296.9,4296.3,0.001]
[1755783900331,0.02,4297.8,4296.9,0.3022]
[1755783900547,0.4702,4297.8,4297.5,0.116]
[1755783900761,0.2895,4297.6,4296.5,0.6100146]
[1755783900918,0.2895,4297.6,4296.7,0.116]
[1755783901124,0.4491,4297.5,4296.3,0.17291456]
[1755783901382,0.02250855,4297.4,4296.3,0.001]
[1755783901525,0.2895,4296.4,4296.3,0.001]
[1755783901722,0.7386,4296.4,4296.3,0.001]
[1755783902331,0.7386,4296.4,4295.8,0.02]
[1755783902332,0.66,4296.0,4295.8,0.02]
[1755783902644,0.66,4295.6,4294.9,0.001]
[1755783902969,0.66,4294.9,4294.2,0.001]
[1755783903265,0.2895,4294.3,4294.2,0.001]
[1755783903768,0.7158,4294.3,4294.2,0.001]